Department family,Entity,Allocation Date,Expense type,Expense Area,Supplier,Transaction Number,Amount in Sterling
Government Equalities Office,Equality and Human Rights Commission,12/06/2012,Accommodation,Operating - Finance,Expotel,20130348,917.29
Government Equalities Office,Equality and Human Rights Commission,12/06/2012,Accommodation,Change - Facilities Management,Expotel,20130301,"3,009.75"
Government Equalities Office,Equality and Human Rights Commission,12/06/2012,Accommodation,Change,Redfern Travel,20130302,"29,956.28"
Government Equalities Office,Equality and Human Rights Commission,19/06/2012,Ad hoc 3rd Party Service,Change - IT,Badenoch & Clark,iPOS Invoice 45551,"4,301.94"
Government Equalities Office,Equality and Human Rights Commission,19/06/2012,Ad hoc 3rd Party Service,Change - IT,Badenoch & Clark,iPOS Invoice 45556,"4,301.94"
Government Equalities Office,Equality and Human Rights Commission,26/06/2012,Advisory Group Fees,Operating - Statutory Committee Wales,Betsi Cadwaladr University Health Board,iPOS Invoice 45640,750
Government Equalities Office,Equality and Human Rights Commission,26/06/2012,Agency Staff,Change - People,Edenbrown,iPOS Invoice 45646,877.84
Government Equalities Office,Equality and Human Rights Commission,12/06/2012,Agency Staff,Change - Group Director,Hudson Global Resources Ltd,iPOS Invoice 45465,915.36
Government Equalities Office,Equality and Human Rights Commission,12/06/2012,Agency Staff,Change - People,Resource Innovations,iPOS Invoice 45328,"1,010.44"
Government Equalities Office,Equality and Human Rights Commission,19/06/2012,Agency Staff,Change - Group Director,Hudson Global Resources Ltd,iPOS Invoice 45593,"1,261.01"
Government Equalities Office,Equality and Human Rights Commission,19/06/2012,Agency Staff,Change - Group Director,Hudson Global Resources Ltd,iPOS Invoice 45592,"1,681.34"
Government Equalities Office,Equality and Human Rights Commission,12/06/2012,Agency Staff,Change - People,Edenbrown,iPOS Invoice 45483,"1,755.66"
Government Equalities Office,Equality and Human Rights Commission,12/06/2012,Agency Staff,Change - People,Edenbrown,iPOS Invoice 45508,"1,755.66"
Government Equalities Office,Equality and Human Rights Commission,19/06/2012,Agency Staff,Change - People,Edenbrown,iPOS Invoice 45579,"1,755.66"
Government Equalities Office,Equality and Human Rights Commission,06/06/2012,Agency Staff,Policy & Ptnrship - Business Planning,Reed Employment,iPOS Invoice 45409,"1,872.00"
Government Equalities Office,Equality and Human Rights Commission,06/06/2012,Agency Staff,Policy & Ptnrship - Business Planning,Reed Employment,iPOS Invoice 45410,"1,872.00"
Government Equalities Office,Equality and Human Rights Commission,06/06/2012,Agency Staff,Policy & Ptnrship - Business Planning,Reed Employment,iPOS Invoice 45411,"1,872.00"
Government Equalities Office,Equality and Human Rights Commission,06/06/2012,Agency Staff,Policy & Ptnrship - Business Planning,Reed Employment,iPOS Invoice 45413,"1,872.00"
Government Equalities Office,Equality and Human Rights Commission,06/06/2012,Agency Staff,Policy & Ptnrship - Business Planning,Reed Employment,iPOS Invoice 45415,"1,872.00"
Government Equalities Office,Equality and Human Rights Commission,06/06/2012,Agency Staff,Policy & Ptnrship - Business Planning,Reed Employment,iPOS Invoice 45416,"1,872.00"
Government Equalities Office,Equality and Human Rights Commission,12/06/2012,Agency Staff,Policy & Ptnrship - Business Planning,Reed Employment,iPOS Invoice 45510,"1,872.00"
Government Equalities Office,Equality and Human Rights Commission,12/06/2012,Agency Staff,Operating - Finance,Hudson Global Resources Ltd,iPOS Invoice 45377,"2,101.68"
Government Equalities Office,Equality and Human Rights Commission,19/06/2012,Agency Staff,Change - Group Director,Hudson Global Resources Ltd,iPOS Invoice 45577,"2,101.68"
Government Equalities Office,Equality and Human Rights Commission,19/06/2012,Agency Staff,Change - Group Director,Hudson Global Resources Ltd,iPOS Invoice 45578,"2,101.68"
Government Equalities Office,Equality and Human Rights Commission,19/06/2012,Agency Staff,Change - Group Director,Hudson Global Resources Ltd,iPOS Invoice 45591,"2,101.68"
Government Equalities Office,Equality and Human Rights Commission,26/06/2012,Agency Staff,Change - Group Director,Hudson Global Resources Ltd,iPOS Invoice 45656,"2,101.68"
Government Equalities Office,Equality and Human Rights Commission,06/06/2012,Agency Staff,Policy & Ptnrship - Business Planning,Reed Employment,iPOS Invoice 45407,"2,184.00"
Government Equalities Office,Equality and Human Rights Commission,06/06/2012,Agency Staff,Policy & Ptnrship - Business Planning,Reed Employment,iPOS Invoice 45414,"2,184.00"
Government Equalities Office,Equality and Human Rights Commission,06/06/2012,Agency Staff,Policy & Ptnrship - Business Planning,Reed Employment,iPOS Invoice 45417,"2,184.00"
Government Equalities Office,Equality and Human Rights Commission,06/06/2012,Agency Staff,Policy & Ptnrship - Business Planning,Reed Employment,iPOS Invoice 45418,"2,184.00"
Government Equalities Office,Equality and Human Rights Commission,06/06/2012,Agency Staff,Policy & Ptnrship - Business Planning,Reed Employment,iPOS Invoice 45420,"2,184.00"
Government Equalities Office,Equality and Human Rights Commission,26/06/2012,Agency Staff,Change - Group Director,Hudson Global Resources Ltd,iPOS Invoice 45657,"2,440.94"
Government Equalities Office,Equality and Human Rights Commission,06/06/2012,Agency Staff,Policy & Ptnrship - Business Planning,Reed Employment,iPOS Invoice 45412,"2,496.00"
Government Equalities Office,Equality and Human Rights Commission,06/06/2012,Agency Staff,Policy & Ptnrship - Business Planning,Reed Employment,iPOS Invoice 45419,"2,496.00"
Government Equalities Office,Equality and Human Rights Commission,12/06/2012,Agency Staff,Operating - Corporate Governance,Venn Group,iPOS Invoice 45451,"2,589.00"
Government Equalities Office,Equality and Human Rights Commission,19/06/2012,Agency Staff,Operating - Corporate Governance,Venn Group,iPOS Invoice 45360,"2,589.00"
Government Equalities Office,Equality and Human Rights Commission,19/06/2012,Agency Staff,Operating - Corporate Governance,Venn Group,iPOS Invoice 45597,"2,589.00"
Government Equalities Office,Equality and Human Rights Commission,26/06/2012,Agency Staff,Operating - Corporate Governance,Venn Group,iPOS Invoice 45655,"2,589.00"
Government Equalities Office,Equality and Human Rights Commission,19/06/2012,Agency Staff,Operating - Finance,Spring Technology Staffing Service,iPOS Invoice 45599,"2,797.20"
Government Equalities Office,Equality and Human Rights Commission,12/06/2012,Agency Staff,Change - Group Director,Hudson Global Resources Ltd,iPOS Invoice 45464,"3,051.18"
Government Equalities Office,Equality and Human Rights Commission,26/06/2012,Agency Staff,Operating - Finance,Spring Technology Staffing Service,iPOS Invoice 45658,"4,662.00"
Government Equalities Office,Equality and Human Rights Commission,26/06/2012,Agency Staff,Change,Edenbrown,iPOS Invoice 45523,"6,099.60"
Government Equalities Office,Equality and Human Rights Commission,19/06/2012,Agency Staff,Policy & Ptnrship - External Affairs,Veredus,iPOS Invoice 45531,"7,452.00"
Government Equalities Office,Equality and Human Rights Commission,06/06/2012,Agency Staff,Change - People,Digby Morgan Consulting Ltd,iPOS Invoice 45460,"8,970.00"
Government Equalities Office,Equality and Human Rights Commission,06/06/2012,Agency Staff,Policy & Ptnrship - Group Director,Veredus,iPOS Invoice 45459,"9,612.00"
Government Equalities Office,Equality and Human Rights Commission,26/06/2012,Agency Staff,Operating - Disability Programme,Penna,iPOS Invoice 45692,"10,179.00"
Government Equalities Office,Equality and Human Rights Commission,06/06/2012,Agency Staff,Change - People,Digby Morgan Consulting Ltd,iPOS Invoice 45335,"12,558.00"
Government Equalities Office,Equality and Human Rights Commission,06/06/2012,Agency Staff,Change - People,Digby Morgan Consulting Ltd,iPOS Invoice 45331,"13,800.00"
Government Equalities Office,Equality and Human Rights Commission,26/06/2012,Agency Staff,Operating - Finance,Penna,iPOS Invoice 45711,"16,753.92"
Government Equalities Office,Equality and Human Rights Commission,26/06/2012,Agency Staff,Operating - Finance,Penna,iPOS Invoice 45710,"17,564.64"
Government Equalities Office,Equality and Human Rights Commission,26/06/2012,Agency Staff,Change - People,Veredus,iPOS Invoice 45645,"18,612.00"
Government Equalities Office,Equality and Human Rights Commission,26/06/2012,Agency Staff,Change - Group Director,Veredus,iPOS Invoice 45654,"24,500.26"
Government Equalities Office,Equality and Human Rights Commission,06/06/2012,Agency Staff,Central Project Budget,Veredus,iPOS Invoice 45274,"27,284.38"
Government Equalities Office,Equality and Human Rights Commission,19/06/2012,Agency Staff,Operating - Finance,Veredus,iPOS Invoice 45529,"76,416.00"
Government Equalities Office,Equality and Human Rights Commission,12/06/2012,Alternative Formats,Policy & Ptnrship - External Affairs,Adept Transcription,iPOS Invoice 45373,792.49
Government Equalities Office,Equality and Human Rights Commission,12/06/2012,Alternative Formats,General Counsel - Casework,Mencap,iPOS Invoice 45452,"1,296.00"
Government Equalities Office,Equality and Human Rights Commission,12/06/2012,Alternative Formats,Operating - Scotland,Inspired Services,iPOS Invoice 45365,"1,998.00"
Government Equalities Office,Equality and Human Rights Commission,12/06/2012,Alternative Formats,Policy & Ptnrship - External Affairs,Adept Transcription,iPOS Invoice 45372,"4,923.18"
Government Equalities Office,Equality and Human Rights Commission,27/06/2012,ATW,Operating - Finance,Jobcentre Plus,20130349,"1,073.10"
Government Equalities Office,Equality and Human Rights Commission,06/06/2012,ATW - Agency/Staff Costs,Operating - Finance,Edenbrown,iPOS Invoice 45441,529.09
Government Equalities Office,Equality and Human Rights Commission,12/06/2012,ATW - Agency/Staff Costs,Operating - Finance,Edenbrown,iPOS Invoice 45485,534.24
Government Equalities Office,Equality and Human Rights Commission,12/06/2012,ATW - Agency/Staff Costs,Operating - Finance,Linda Taylor Associates,iPOS Invoice 45311,552.96
Government Equalities Office,Equality and Human Rights Commission,26/06/2012,ATW - Agency/Staff Costs,Operating - Finance,Linda Taylor Associates,iPOS Invoice 45675,552.96
Government Equalities Office,Equality and Human Rights Commission,26/06/2012,ATW - Agency/Staff Costs,Operating - Finance,Edenbrown,iPOS Invoice 45688,598.15
Government Equalities Office,Equality and Human Rights Commission,19/06/2012,ATW - Non Staff Expenditure,Operating - Finance,Rachel Nickless,iPOS Invoice 45535,511.2
Government Equalities Office,Equality and Human Rights Commission,26/06/2012,ATW - Non Staff Expenditure,Operating - Finance,Bee Communications,iPOS Invoice 45650,524.88
Government Equalities Office,Equality and Human Rights Commission,19/06/2012,ATW - Non Staff Expenditure,Operating - Finance,Interpreter Booking Services Ltd,iPOS Invoice 45532,551.76
Government Equalities Office,Equality and Human Rights Commission,19/06/2012,ATW - Non Staff Expenditure,Operating - Finance,Bee Communications,iPOS Invoice 45516,556.8
Government Equalities Office,Equality and Human Rights Commission,26/06/2012,ATW - Non Staff Expenditure,Operating - Finance,Bee Communications,iPOS Invoice 45649,590.52
Government Equalities Office,Equality and Human Rights Commission,26/06/2012,ATW - Non Staff Expenditure,Operating - Finance,Bee Communications,iPOS Invoice 45648,590.76
Government Equalities Office,Equality and Human Rights Commission,26/06/2012,ATW - Non Staff Expenditure,Operating - Finance,Bee Communications,iPOS Invoice 45651,622.2
Government Equalities Office,Equality and Human Rights Commission,26/06/2012,ATW - Non Staff Expenditure,Operating - Finance,Bee Communications,iPOS Invoice 45660,633.24
Government Equalities Office,Equality and Human Rights Commission,12/06/2012,ATW - Non Staff Expenditure,Operating - Finance,Ace Taxis,iPOS Invoice 45498,935.52
Government Equalities Office,Equality and Human Rights Commission,19/06/2012,ATW - Non Staff Expenditure,Operating - Finance,Ace Taxis,iPOS Invoice 45558,"1,754.10"
Government Equalities Office,Equality and Human Rights Commission,12/06/2012,Barristers Fees,General Counsel - Casework,Ben McCormack,iPOS Invoice 45398,"1,026.00"
Government Equalities Office,Equality and Human Rights Commission,26/06/2012,Barristers Fees,General Counsel - Casework,Jonathan Meichen,iPOS Invoice 45643,"1,200.00"
Government Equalities Office,Equality and Human Rights Commission,19/06/2012,Barristers Fees,General Counsel - Enforcement,Dr D Wolfe,iPOS Invoice 45614,"1,200.00"
Government Equalities Office,Equality and Human Rights Commission,12/06/2012,Barristers Fees,General Counsel - Enforcement,Faculty Services Limited,iPOS Invoice 45301,"1,656.00"
Government Equalities Office,Equality and Human Rights Commission,26/06/2012,Barristers Fees,General Counsel - Enforcement,Robin Allen QC,iPOS Invoice 45680,"3,330.00"
Government Equalities Office,Equality and Human Rights Commission,26/06/2012,Books,Operating - Corporate Governance,Sweet & Maxwell Ltd,iPOS Invoice 45661,649.69
Government Equalities Office,Equality and Human Rights Commission,19/06/2012,BT Non Managed Services,Change - IT,BT Onebillplus,iPOS Invoice 45533,"1,970.77"
Government Equalities Office,Equality and Human Rights Commission,19/06/2012,Business Apps Software maintenance and support,Change - IT,Touchstone Ltd,iPOS Invoice 45615,960
Government Equalities Office,Equality and Human Rights Commission,19/06/2012,Business Apps Software maintenance and support,Change - IT,Touchstone Ltd,iPOS Invoice 45617,960
Government Equalities Office,Equality and Human Rights Commission,26/06/2012,Business Apps Software maintenance and support,Change - IT,Touchstone Ltd,iPOS Invoice 45695,"1,920.00"
Government Equalities Office,Equality and Human Rights Commission,26/06/2012,Business Apps Software maintenance and support,Change - IT,Touchstone Ltd,iPOS Invoice 45696,"2,880.00"
Government Equalities Office,Equality and Human Rights Commission,06/06/2012,Chair Pension Liability,Operating - Finance,Home Office -Accounts Receiveable,iPOS Invoice 45389,"6,518.45"
Government Equalities Office,Equality and Human Rights Commission,06/06/2012,Chair Pension Liability,Operating - Finance,Home Office -Accounts Receiveable,iPOS Invoice 45390,"6,518.45"
Government Equalities Office,Equality and Human Rights Commission,12/06/2012,Childcare Voucher Scheme,Change - People,Accor Services,iPOS Invoice 45462,"4,617.81"
Government Equalities Office,Equality and Human Rights Commission,19/06/2012,Cleaning Services,Change - Facilities Management,CK Cleaning Services (Midlands) LLP,iPOS Invoice 45553,576
Government Equalities Office,Equality and Human Rights Commission,12/06/2012,Cleaning Services,Change - Facilities Management,Keith Brooks,iPOS Invoice 45492,990
Government Equalities Office,Equality and Human Rights Commission,06/06/2012,Cleaning Services,Change - Facilities Management,Norton Rose,iPOS Invoice 45430,"1,000.10"
Government Equalities Office,Equality and Human Rights Commission,12/06/2012,Cleaning Services,Change - Facilities Management,Carroll Cleaning Company Ltd,iPOS Invoice 45428,"3,096.02"
Government Equalities Office,Equality and Human Rights Commission,26/06/2012,Cleaning Services,Change - Facilities Management,Carroll Cleaning Company Ltd,iPOS Invoice 45700,"3,096.02"
Government Equalities Office,Equality and Human Rights Commission,26/06/2012,Cleaning Services,Change - Facilities Management,LAFAN CYF,iPOS Invoice 45703,"3,842.21"
Government Equalities Office,Equality and Human Rights Commission,12/06/2012,Cleaning Services,Change - Facilities Management,OCS Group Limited,iPOS Invoice 45427,"4,202.95"
Government Equalities Office,Equality and Human Rights Commission,12/06/2012,Client Support,Operating - Scotland,Deaf Connections,iPOS Invoice 45506,539.56
Government Equalities Office,Equality and Human Rights Commission,26/06/2012,Client Support,Operating - Statutory Committee Wales,Nerys Hurford Ltd,iPOS Invoice 45685,660
Government Equalities Office,Equality and Human Rights Commission,12/06/2012,Commissioners' Fees,Operating - Statutory Committee Wales,Betsi Cadwaladr University Health Board,iPOS Invoice 45318,750
Government Equalities Office,Equality and Human Rights Commission,12/06/2012,Conference Interpreters Expenses,Operating - Statutory Committee Disability,Sttrs Direct,iPOS Invoice 45443,591.96
Government Equalities Office,Equality and Human Rights Commission,26/06/2012,Conference Interpreters Expenses,Operating - Statutory Committee Disability,Sttrs Direct,iPOS Invoice 45631,"1,097.76"
Government Equalities Office,Equality and Human Rights Commission,12/06/2012,Conference Set Up/Equipment Costs,Operating - Group Director,Audio & Interpretation Services Ltd,iPOS Invoice 45454,825.6
Government Equalities Office,Equality and Human Rights Commission,19/06/2012,Conference Speakers Fees,Operating - Wales,Institute of Welsh Affairs,iPOS Invoice 45246,"3,920.40"
Government Equalities Office,Equality and Human Rights Commission,06/06/2012,Researchers Fees,Operating - Human Rights & respect,Ipsos Mori,iPOS Invoice 45353,"7,980.00"
Government Equalities Office,Equality and Human Rights Commission,19/06/2012,Consultancy Costs,Change - Group Director,The Hay Group Management Ltd,iPOS Invoice 45587,"15,042.60"
Government Equalities Office,Equality and Human Rights Commission,12/06/2012,Disaster Recovery,Change - IT,IBM,iPOS Invoice 45495,544.85
Government Equalities Office,Equality and Human Rights Commission,12/06/2012,Electricity,Change - Facilities Management,Prudential Prop Invest Manager,iPOS Invoice 45468,899.67
Government Equalities Office,Equality and Human Rights Commission,06/06/2012,Electricity,Change - Facilities Management,Norton Rose,iPOS Invoice 45456,"3,018.38"
Government Equalities Office,Equality and Human Rights Commission,06/06/2012,Electricity,Change - Facilities Management,Norton Rose,iPOS Invoice 45453,"3,436.62"
Government Equalities Office,Equality and Human Rights Commission,06/06/2012,Electricity,Change - Facilities Management,Norton Rose,iPOS Invoice 45457,"3,439.32"
Government Equalities Office,Equality and Human Rights Commission,26/06/2012,Equipment Rental,Operating - Statutory Committee Disability,Audio & Interpretation Services Ltd,iPOS Invoice 45679,825.6
Government Equalities Office,Equality and Human Rights Commission,12/06/2012,Events Attendees Costs,Operating - Public Service,Advice UK Ltd,iPOS Invoice 45298,"5,100.00"
Government Equalities Office,Equality and Human Rights Commission,19/06/2012,External Printing,Operating - Group Director,Hobs Reprographics,iPOS Invoice 45604,525.78
Government Equalities Office,Equality and Human Rights Commission,19/06/2012,External Printing,Operating - Group Director,Hobs Reprographics,iPOS Invoice 45612,699.6
Government Equalities Office,Equality and Human Rights Commission,19/06/2012,External Printing,Operating - Group Director,Hobs Reprographics,iPOS Invoice 45607,892.08
Government Equalities Office,Equality and Human Rights Commission,12/06/2012,Franking Machine Rental,Change - Facilities Management,Neopost Finance Ltd Quarterly Rentals only,iPOS Invoice 45470,537.6
Government Equalities Office,Equality and Human Rights Commission,29/06/2012,Grant  ,Operating - Finance,Scottish Government,20130350,"3,729.00"
Government Equalities Office,Equality and Human Rights Commission,29/06/2012,Grant 1,Operating - Grants Unit,Tyneside Rape Crisis Centre,20130345,"1,426.18"
Government Equalities Office,Equality and Human Rights Commission,29/06/2012,Grant 1,Operating - Grants Unit,Kingsway Health & Wellbeing Centre,20130326,"2,837.00"
Government Equalities Office,Equality and Human Rights Commission,29/06/2012,Grant 1,Operating - Grants Unit,Bonny Downs Community Association,20130308,"3,956.70"
Government Equalities Office,Equality and Human Rights Commission,29/06/2012,Grant 1,Operating - Grants Unit,Family Matters,20130321,"5,156.09"
Government Equalities Office,Equality and Human Rights Commission,11/06/2012,Grant 1,Operating - Grants Unit,Cardiff Gypsy & Traveller Project,20130314,"6,026.00"
Government Equalities Office,Equality and Human Rights Commission,29/06/2012,Grant 1,Operating - Grants Unit,Cambridge Ethnic Community Forum,20130313,"6,173.66"
Government Equalities Office,Equality and Human Rights Commission,29/06/2012,Grant 1,Operating - Grants Unit,Barking and Dagenham REC,20130307,"6,284.99"
Government Equalities Office,Equality and Human Rights Commission,29/06/2012,Grant 1,Operating - Grants Unit,Brent Mencap,20130311,"6,919.87"
Government Equalities Office,Equality and Human Rights Commission,29/06/2012,Grant 1,Operating - Grants Unit,Sheffield Domestic Abuse Forum,20130340,"7,663.46"
Government Equalities Office,Equality and Human Rights Commission,29/06/2012,Grant 1,Operating - Grants Unit,CHANGE,20130317,"8,332.00"
Government Equalities Office,Equality and Human Rights Commission,11/06/2012,Grant 1,Operating - Grants Unit,Bristol Next Link Domestic Abuse Services,20130312,"8,657.00"
Government Equalities Office,Equality and Human Rights Commission,13/06/2012,Grant 1,Operating - Grants,Southwark Law Centre,20130341,"10,000.00"
Government Equalities Office,Equality and Human Rights Commission,13/06/2012,Grant 1,Operating - Grants,Working Families,20130347,"10,000.00"
Government Equalities Office,Equality and Human Rights Commission,13/06/2012,Grant 1,Operating - Grants,Greenwich Community Law Centre,20130322,"10,004.93"
Government Equalities Office,Equality and Human Rights Commission,13/06/2012,Grant 1,Operating - Grants,Citizens Advice East Sussex (CAES),20130319,"10,344.00"
Government Equalities Office,Equality and Human Rights Commission,11/06/2012,Grant 1,Operating - Grants Unit,The Runnymede Trust,20130337,"10,450.00"
Government Equalities Office,Equality and Human Rights Commission,11/06/2012,Grant 1,Operating - Grants Unit,The Rape & Sexual Abuse Counselling Centre,20130334,"10,474.20"
Government Equalities Office,Equality and Human Rights Commission,11/06/2012,Grant 1,Operating - Grants Unit,Kingsway Health & Wellbeing Centre,20130325,"12,458.70"
Government Equalities Office,Equality and Human Rights Commission,13/06/2012,Grant 1,Operating - Grants,Central London Law Centre,20130315,"12,500.00"
Government Equalities Office,Equality and Human Rights Commission,22/06/2012,Grant 1,Operating - Grants,Stoke on Trent Citizens Advice Bureau,20130342,"12,500.00"
Government Equalities Office,Equality and Human Rights Commission,29/06/2012,Grant 1,Operating - Grants Unit,Sexual Violence Alliance,20130338,"12,922.00"
Government Equalities Office,Equality and Human Rights Commission,22/06/2012,Grant 1,Operating - Grants,Tower Hamlets Law Centre,20130343,"13,157.42"
Government Equalities Office,Equality and Human Rights Commission,22/06/2012,Grant 1,Operating - Grants,Northamptonshire REC,20130331,"13,750.00"
Government Equalities Office,Equality and Human Rights Commission,13/06/2012,Grant 1,Operating - Grants,Avon And Bristol Law Centre,20130305,"14,500.00"
Government Equalities Office,Equality and Human Rights Commission,13/06/2012,Grant 1,Operating - Grants,Avon And Bristol Law Centre,20130306,"14,500.00"
Government Equalities Office,Equality and Human Rights Commission,22/06/2012,Grant 1,Operating - Grants,Cheshire Hw Rec,20130318,"15,000.00"
Government Equalities Office,Equality and Human Rights Commission,13/06/2012,Grant 1,Operating - Grants,Preston And Western Lancashire REC,20130333,"15,000.00"
Government Equalities Office,Equality and Human Rights Commission,13/06/2012,Grant 1,Operating - Grants,Trafford Law Centre,20130344,"15,000.00"
Government Equalities Office,Equality and Human Rights Commission,13/06/2012,Grant 1,Operating - Grants,Rochdale Law Centre,20130335,"15,008.00"
Government Equalities Office,Equality and Human Rights Commission,13/06/2012,Grant 1,Operating - Grants,Rochdale Law Centre,20130336,"15,122.00"
Government Equalities Office,Equality and Human Rights Commission,13/06/2012,Grant 1,Operating - Grants,Kirklees Law Centre,20130327,"15,195.00"
Government Equalities Office,Equality and Human Rights Commission,13/06/2012,Grant 1,Operating - Grants,Sheffield Law Centre,20130339,"15,336.11"
Government Equalities Office,Equality and Human Rights Commission,11/06/2012,Grant 1,Operating - Grants Unit,Human Rights & Equalities Charnwood,20130323,"15,682.50"
Government Equalities Office,Equality and Human Rights Commission,11/06/2012,Grant 1,Operating - Grants Unit,Women in Prison,20130346,"15,766.89"
Government Equalities Office,Equality and Human Rights Commission,11/06/2012,Grant 1,Operating - Grants Unit,Brent Mencap,20130310,"16,308.06"
Government Equalities Office,Equality and Human Rights Commission,29/06/2012,Grant 1,Operating - Grants Unit,Families Need Fathers,20130320,"17,062.50"
Government Equalities Office,Equality and Human Rights Commission,13/06/2012,Grant 1,Operating - Grants,Aire Centre,20130303,"17,585.25"
Government Equalities Office,Equality and Human Rights Commission,13/06/2012,Grant 1,Operating - Grants,North Kensington Law Centre,20130332,"18,500.00"
Government Equalities Office,Equality and Human Rights Commission,11/06/2012,Grant 1,Operating - Grants Unit,CHANGE,20130316,"18,527.00"
Government Equalities Office,Equality and Human Rights Commission,13/06/2012,Grant 1,Operating - Grants,Aire Centre,20130304,"19,845.42"
Government Equalities Office,Equality and Human Rights Commission,13/06/2012,Grant 1,Operating - Grants,Newport CAB,20130329,"20,000.00"
Government Equalities Office,Equality and Human Rights Commission,13/06/2012,Grant 1,Operating - Grants,Newport CAB,20130330,"20,000.00"
Government Equalities Office,Equality and Human Rights Commission,29/06/2012,Grant 1,Operating - Grants Unit,Breakthrough UK Ltd,20130309,"22,608.42"
Government Equalities Office,Equality and Human Rights Commission,11/06/2012,Grant 1,Operating - Grants Unit,Kick It Out,20130324,"24,184.80"
Government Equalities Office,Equality and Human Rights Commission,22/06/2012,Grant 1,Operating - Grants,Law Centres Federation,20130328,"60,000.00"
Government Equalities Office,Equality and Human Rights Commission,26/06/2012,Health Referrals,Change - People,Road to Health Ltd,iPOS Invoice 45683,"1,017.60"
Government Equalities Office,Equality and Human Rights Commission,26/06/2012,Health Referrals,Change - People,Road to Health Ltd,iPOS Invoice 45684,"1,017.60"
Government Equalities Office,Equality and Human Rights Commission,12/06/2012,Helpline Costs,Policy & Ptnrship - Helpline,Language Line,iPOS Invoice 45381,618.24
Government Equalities Office,Equality and Human Rights Commission,26/06/2012,Internal Audit Fees,Operating - Finance,Deloitte LLP,iPOS Invoice 45716,"13,053.84"
Government Equalities Office,Equality and Human Rights Commission,19/06/2012,Internal Audit Fees,Operating - Finance,Deloitte LLP,iPOS Invoice 45619,"30,096.00"
Government Equalities Office,Equality and Human Rights Commission,26/06/2012,IT Software Maintenance and Support,Change - IT,OCLC,iPOS Invoice 45670,"6,000.00"
Government Equalities Office,Equality and Human Rights Commission,12/06/2012,Learning And Development,Policy & Ptnrship - Stakeholder Relations,Make Yourself Ltd,iPOS Invoice 45396,840
Government Equalities Office,Equality and Human Rights Commission,19/06/2012,Learning And Development,Change - People,Bray Leino Ltd,iPOS Invoice 45325,870
Government Equalities Office,Equality and Human Rights Commission,12/06/2012,Learning And Development,Policy & Ptnrship - Helpline,Flame Consulting,iPOS Invoice 45323,"1,146.60"
Government Equalities Office,Equality and Human Rights Commission,26/06/2012,Learning And Development,Policy & Ptnrship - Helpline,Flame Consulting,iPOS Invoice 45401,"1,154.88"
Government Equalities Office,Equality and Human Rights Commission,26/06/2012,Learning And Development,Change - Group Director,CIPD,iPOS Invoice 45642,"2,190.00"
Government Equalities Office,Equality and Human Rights Commission,19/06/2012,Learning And Development,Policy & Ptnrship - Helpline,Telephone Helplines Association,iPOS Invoice 45585,"3,356.40"
Government Equalities Office,Equality and Human Rights Commission,19/06/2012,Legal Services,Operating - Public Service,Beth Holbrook,iPOS Invoice 45588,"1,200.00"
Government Equalities Office,Equality and Human Rights Commission,12/06/2012,Marketing,Policy & Ptnrship - External Affairs,Emailvision (UK) Ltd,iPOS Invoice 45472,953.63
Government Equalities Office,Equality and Human Rights Commission,12/06/2012,Marketing,Policy & Ptnrship - External Affairs,Emailvision (UK) Ltd,iPOS Invoice 45473,953.63
Government Equalities Office,Equality and Human Rights Commission,12/06/2012,Media Monitoring,Policy & Ptnrship - External Affairs,Press Data Bureau,iPOS Invoice 45486,"3,298.69"
Government Equalities Office,Equality and Human Rights Commission,26/06/2012,Media Monitoring,Policy & Ptnrship - External Affairs,Metrica,iPOS Invoice 45627,"5,599.38"
Government Equalities Office,Equality and Human Rights Commission,26/06/2012,MFD Rent Charges,Change - IT,Danwood Contract Rentals,iPOS Invoice 45673,"6,585.60"
Government Equalities Office,Equality and Human Rights Commission,12/06/2012,Mobile Costs,Change - IT,Orange PCS Ltd,iPOS Invoice 45481,"2,499.79"
Government Equalities Office,Equality and Human Rights Commission,19/06/2012,Occupational Health Contract,Change - People,Merrill Legal Solutions,iPOS Invoice 45517,782.59
Government Equalities Office,Equality and Human Rights Commission,12/06/2012,Office Reorganisation,Change - Facilities Management,Harrow Green Limited,iPOS Invoice 45424,557.04
Government Equalities Office,Equality and Human Rights Commission,12/06/2012,Office Reorganisation,Change - Facilities Management,Harrow Green Limited,iPOS Invoice 45425,"1,131.13"
Government Equalities Office,Equality and Human Rights Commission,12/06/2012,Office Reorganisation,Change - Facilities Management,Harrow Green Limited,iPOS Invoice 45463,"1,879.50"
Government Equalities Office,Equality and Human Rights Commission,06/06/2012,Payroll Processing Costs,Operating - Finance,Ceridian Centrefile Ltd,iPOS Invoice 45314,"2,257.36"
Government Equalities Office,Equality and Human Rights Commission,06/06/2012,Payroll Processing Costs,Operating - Finance,Ceridian Centrefile Ltd,iPOS Invoice 45379,"2,257.36"
Government Equalities Office,Equality and Human Rights Commission,26/06/2012,Payroll Processing Costs,Operating - Finance,Ceridian Centrefile Ltd,iPOS Invoice 45715,"2,257.36"
Government Equalities Office,Equality and Human Rights Commission,26/06/2012,Pensions Administration,Operating - Finance,Bestrustees,iPOS Invoice 45713,"4,500.00"
Government Equalities Office,Equality and Human Rights Commission,26/06/2012,Pensions Administration,Operating - Finance,Bestrustees,iPOS Invoice 45714,"4,500.00"
Government Equalities Office,Equality and Human Rights Commission,26/06/2012,Postage,Change - Facilities Management,Royal Mail,iPOS Invoice 45699,900
Government Equalities Office,Equality and Human Rights Commission,19/06/2012,Postage,Change - Facilities Management,FP Teleset,iPOS Invoice 45589,"1,000.00"
Government Equalities Office,Equality and Human Rights Commission,19/06/2012,Postage,Change - Facilities Management,Neopost Finance Ltd,iPOS Invoice 45620,"1,500.00"
Government Equalities Office,Equality and Human Rights Commission,12/06/2012,Premises prepayments,Change - Facilities Management,CBRE Ltd,iPOS Invoice 45469,"2,727.13"
Government Equalities Office,Equality and Human Rights Commission,06/06/2012,Premises prepayments,Change - Facilities Management,Norton Rose,iPOS Invoice 45429,"4,076.16"
Government Equalities Office,Equality and Human Rights Commission,12/06/2012,Publications Corporate,Operating - Economy & Employment,Kids Connections Limited,iPOS Invoice 45447,510.12
Government Equalities Office,Equality and Human Rights Commission,12/06/2012,Publications Corporate,Operating - Economy & Employment,Kids Connections Limited,iPOS Invoice 45446,"6,900.00"
Government Equalities Office,Equality and Human Rights Commission,12/06/2012,Publications Editing/Proof Reading,Operating - Public Service,ProseWorks Ltd,iPOS Invoice 45395,"2,100.00"
Government Equalities Office,Equality and Human Rights Commission,12/06/2012,Publications Storage Costs,Policy & Ptnrship - External Affairs,Promotional Logistics Ltd,iPOS Invoice 45224,"2,326.94"
Government Equalities Office,Equality and Human Rights Commission,26/06/2012,Rail Travel,Change - People,Veredus,iPOS Invoice 45647,664.67
Government Equalities Office,Equality and Human Rights Commission,19/06/2012,Records Storage Costs,Operating - Research & Information,Iron Mountain (UK) Ltd,iPOS Invoice 45594,"2,175.22"
Government Equalities Office,Equality and Human Rights Commission,12/06/2012,Records Storage Costs,Operating - Research & Information,Iron Mountain (UK) Ltd,iPOS Invoice 45300,"2,506.13"
Government Equalities Office,Equality and Human Rights Commission,06/06/2012,Rent,Change - Facilities Management,Mwb Business Exchange Centres,iPOS Invoice 45434,"2,076.00"
Government Equalities Office,Equality and Human Rights Commission,12/06/2012,Researchers Fees,Operating - Human Rights & respect,Equality and Diversity Forum,iPOS Invoice 45484,"12,500.00"
Government Equalities Office,Equality and Human Rights Commission,26/06/2012,Security,Change - Facilities Management,Key Control Services Ltd,iPOS Invoice 45698,798
Government Equalities Office,Equality and Human Rights Commission,12/06/2012,Security,Change - Group Director,Key Control Services Ltd,iPOS Invoice 45426,882
Government Equalities Office,Equality and Human Rights Commission,26/06/2012,Security,Change - Facilities Management,Key Control Services Ltd,iPOS Invoice 45697,882
Government Equalities Office,Equality and Human Rights Commission,12/06/2012,Security,Change - Facilities Management,Banner Business Supplies Ltd,A-24567203,"1,244.82"
Government Equalities Office,Equality and Human Rights Commission,26/06/2012,Security,Change - Facilities Management,Edenbrown,iPOS Invoice 45662,"2,382.32"
Government Equalities Office,Equality and Human Rights Commission,26/06/2012,Security,Change - Facilities Management,Edenbrown,iPOS Invoice 45667,"3,789.48"
Government Equalities Office,Equality and Human Rights Commission,26/06/2012,Security,Change - Facilities Management,Edenbrown,iPOS Invoice 45666,"3,833.16"
Government Equalities Office,Equality and Human Rights Commission,26/06/2012,Security,Change - Facilities Management,Edenbrown,iPOS Invoice 45663,"3,852.88"
Government Equalities Office,Equality and Human Rights Commission,26/06/2012,Security,Change - Facilities Management,Edenbrown,iPOS Invoice 45665,"4,805.56"
Government Equalities Office,Equality and Human Rights Commission,26/06/2012,Security,Change - Facilities Management,Edenbrown,iPOS Invoice 45664,"5,102.00"
Government Equalities Office,Equality and Human Rights Commission,26/06/2012,Solicitors Fees,General Counsel - Casework,Leigh Day & Co,iPOS Invoice 44974,"3,862.90"
Government Equalities Office,Equality and Human Rights Commission,19/06/2012,Solicitors Fees,Operating - Public Service,Miss Catherine Casserley,iPOS Invoice 45626,"4,629.60"
Government Equalities Office,Equality and Human Rights Commission,19/06/2012,Staff Support,Operating - Human Rights & respect,Merrill Legal Solutions,iPOS Invoice 45504,665.85
Government Equalities Office,Equality and Human Rights Commission,26/06/2012,WAN Expenditure,Change - IT,BT Global Services,iPOS Invoice 45708,"37,204.58"
Government Equalities Office,Equality and Human Rights Commission,06/06/2012,WAN Expenditure,Change - IT,BT Global Services,iPOS Invoice 45440,"37,419.22"
Government Equalities Office,Equality and Human Rights Commission,06/06/2012,WAN Expenditure,Change - IT,BT Global Services,iPOS Invoice 45326,"40,068.12"
,,,,,,,"1,412,956.92"
